bitfinex-derivatives/quotes_BTCF0:USTF0_20250716
["timestamp","ask_amount","ask_price","bid_price","bid_amount"]
[1752649162558,1.15859434,118390.0,118380.0,0.6141923]
[1752649163358,1.05214645,118390.0,118380.0,0.6141923]
[1752649164457,1.3279272,118390.0,118380.0,0.6141923]
[1752649165462,1.40399847,118390.0,118380.0,0.6141923]
[1752649165863,1.3279272,118390.0,118380.0,0.6141923]
[1752649166360,1.40399966,118390.0,118380.0,0.6141923]
[1752649167167,0.85243816,118390.0,118380.0,0.6141923]
[1752649167354,1.40399966,118390.0,118380.0,0.6141923]
[1752649168758,1.40399966,118390.0,118380.0,0.2533923]
[1752649169062,1.40399966,118390.0,118380.0,0.6141923]
[1752649170562,1.3279272,118390.0,118380.0,0.6141923]
[1752649170755,1.40400274,118390.0,118380.0,0.6141923]
[1752649171061,1.39872274,118390.0,118380.0,0.6141923]
[1752649171854,1.3226472,118390.0,118380.0,0.6141923]
[1752649172263,1.3835068,118390.0,118380.0,0.6141923]
[1752649172455,0.8319453,118390.0,118380.0,0.6141923]
[1752649172655,1.10772605,118390.0,118380.0,0.6141923]
[1752649175962,1.04686645,118390.0,118380.0,0.6141923]
[1752649176265,1.15331434,118390.0,118380.0,0.6141923]
[1752649176565,1.04686645,118390.0,118380.0,0.6141923]
[1752649176755,1.1229405,118390.0,118380.0,0.6141923]
[1752649179465,1.39872125,118390.0,118380.0,0.6141923]
[1752649180360,1.1229405,118390.0,118380.0,0.6141923]
[1752649182465,1.04686645,118390.0,118380.0,0.6141923]
[1752649183967,1.12294073,118390.0,118380.0,0.6141923]
[1752649184168,1.04686645,118390.0,118380.0,0.6141923]
[1752649185474,1.3226472,118390.0,118380.0,0.6141923]
[1752649187071,0.7216872,118390.0,118380.0,0.6141923]
[1752649187671,0.44590645,118390.0,118380.0,0.6141923]
[1752649188174,0.52198094,118390.0,118380.0,0.6141923]
[1752649190174,0.24620019,118390.0,118380.0,0.6141923]
[1752649190568,0.52198094,118390.0,118380.0,0.6141923]
[1752649191472,0.79776169,118390.0,118380.0,0.6141923]
[1752649191672,0.52198094,118390.0,118380.0,0.6141923]
[1752649192875,0.62842883,118390.0,118380.0,0.6141923]
[1752649193063,0.55235434,118390.0,118380.0,0.6141923]
[1752649193676,0.55235434,118390.0,118380.0,0.2533923]
[1752649193875,0.55235434,118390.0,118380.0,0.6141923]
[1752649194277,0.27657359,118390.0,118380.0,0.6141923]
[1752649194480,0.55235434,118390.0,118380.0,0.6141923]
[1752649195975,0.62842956,118390.0,118380.0,0.6141923]
[1752649196174,0.52198167,118390.0,118380.0,0.6141923]
[1752649196479,0.24620092,118390.0,118380.0,0.6141923]
[1752649196778,0.52198167,118390.0,118380.0,0.6141923]
[1752649197178,0.52933167,118390.0,118380.0,0.6166823]
[1752649198178,0.25355092,118390.0,118380.0,0.6166823]
[1752649198378,0.52933167,118390.0,118380.0,0.6166823]
[1752649199380,0.25355092,118390.0,118380.0,0.6166823]
[1752649199678,0.52933167,118390.0,118380.0,0.6166823]
[1752649199881,0.52833167,118390.0,118380.0,0.6166823]
[1752649200582,0.83448509,118390.0,118380.0,0.6166823]
[1752649200781,0.28292359,118390.0,118380.0,0.6166823]
[1752649200973,0.7280372,118390.0,118380.0,0.6166823]
[1752649201875,0.45225645,118390.0,118380.0,0.6166823]
[1752649202076,0.1764757,118390.0,118380.0,0.6166823]
[1752649202278,0.45225645,118390.0,118380.0,0.6166823]
[1752649203086,0.25255324,118390.0,118380.0,0.6166823]
[1752649203382,0.25255324,118390.0,118380.0,0.6157934]
[1752649203781,0.52833399,118390.0,118380.0,0.6157934]
[1752649204281,0.45225645,118390.0,118380.0,0.6157934]
[1752649204581,0.52833389,118390.0,118380.0,0.6157934]
[1752649205784,0.45225645,118390.0,118380.0,0.6157934]
[1752649206182,0.51311837,118390.0,118380.0,0.6157934]
[1752649207085,0.23733762,118390.0,118380.0,0.6157934]
[1752649207386,0.51311837,118390.0,118380.0,0.6157934]
[1752649207576,0.78889912,118390.0,118380.0,0.5735607]
[1752649208485,0.1689398,118380.0,118370.0,0.9989975]
[1752649208784,0.1763041,118370.0,118360.0,0.5322584]
[1752649208986,0.7280656,118370.0,118360.0,0.5297684]
[1752649209187,0.80415526,118370.0,118360.0,0.5297684]
[1752649210289,0.45228485,118370.0,118360.0,0.5352584]
[1752649211088,0.45228485,118370.0,118360.0,0.5362584]
[1752649211287,0.1765041,118370.0,118360.0,0.5362584]
[1752649211591,0.52837451,118370.0,118360.0,0.5362584]
[1752649211891,0.80415526,118370.0,118360.0,0.5337684]
[1752649212492,0.7280656,118370.0,118360.0,0.5337684]
[1752649213394,0.1765041,118370.0,118360.0,0.5337684]
[1752649213599,0.45228485,118370.0,118360.0,0.5362584]
[1752649214502,0.5130371,118370.0,118360.0,0.5362584]
[1752649215196,0.06587225,118370.0,118360.0,1.0904499]
[1752649215393,0.341653,118370.0,118360.0,1.0904499]
[1752649217102,0.28090075,118370.0,118360.0,1.0904499]
[1752649217403,0.341653,118370.0,118360.0,1.0904499]
[1752649217702,0.336733,118370.0,118360.0,1.0904499]
[1752649217899,0.0002,118370.0,118360.0,1.0904499]
[1752649218998,0.06095225,118370.0,118360.0,1.0904499]
[1752649222602,0.0002,118370.0,118360.0,1.2594179]
[1752649222802,0.0002,118370.0,118360.0,0.7269453]
[1752649223000,0.0002,118370.0,118360.0,1.2785068]
[1752649223202,0.06095225,118370.0,118360.0,1.2785068]
[1752649223508,0.06095225,118370.0,118360.0,0.7269453]
[1752649223707,0.06095225,118370.0,118360.0,1.2785068]
[1752649223907,0.0002,118370.0,118360.0,1.2785068]
[1752649226812,0.343823,118390.0,118380.0,0.1689398]
[1752649227010,0.5127491,118390.0,118380.0,1.77099055]
[1752649227313,0.5127491,118390.0,118380.0,1.51422126]
[1752649228211,0.5127491,118390.0,118380.0,1.79000201]
[1752649229313,0.45199685,118390.0,118380.0,1.79000201]
[1752649230208,0.45199685,118390.0,118380.0,1.51422126]
[1752649230408,0.45199685,118390.0,118380.0,1.79000201]
[1752649230714,0.45199685,118390.0,118380.0,1.51422126]
[1752649232110,0.7277776,118390.0,118380.0,1.51115126]
[1752649232412,0.80386726,118390.0,118380.0,1.51115126]
[1752649233215,0.45199685,118390.0,118380.0,1.51115126]
[1752649233415,0.7277776,118390.0,118380.0,1.51115126]
[1752649233615,0.80386726,118390.0,118380.0,1.51115126]
[1752649234113,0.80386726,118390.0,118380.0,0.7718598]
[1752649234418,0.52808651,118390.0,118380.0,1.1326598]
[1752649235116,0.6199567,118390.0,118380.0,1.1326598]
[1752649236117,0.54386704,118390.0,118380.0,1.1326598]
[1752649236318,0.65031493,118390.0,118380.0,1.1326598]
[1752649236816,0.28266399,118390.0,118380.0,1.1326598]
[1752649237016,0.65031493,118390.0,118380.0,1.1326598]
[1752649238017,0.54386704,118390.0,118380.0,1.1326598]
[1752649239626,0.65031493,118390.0,118380.0,1.1326598]
[1752649239922,0.28266399,118390.0,118380.0,1.1326598]
[1752649240224,0.65031493,118390.0,118380.0,1.1326598]
[1752649240618,0.1713098,118380.0,118370.0,0.6564481]
[1752649240818,0.54389074,118380.0,118370.0,1.2576481]
[1752649241012,0.61981712,118380.0,118370.0,1.1309405]
[1752649241521,0.25216618,118380.0,118370.0,1.1309405]
[1752649241822,0.61981712,118380.0,118370.0,1.1309405]
[1752649242226,0.61981712,118380.0,118370.0,1.1331805]
[1752649242922,0.62081712,118380.0,118370.0,1.1331805]
[1752649243724,0.63793267,118380.0,118370.0,1.1331805]
[1752649244028,0.63813267,118380.0,118370.0,1.1331805]
[1752649244821,0.63713267,118380.0,118370.0,1.1331805]
[1752649245022,0.26948173,118380.0,118370.0,1.1331805]
[1752649245225,0.63713267,118380.0,118370.0,1.1331805]
[1752649245817,0.56120629,118380.0,118370.0,1.1331805]
[1752649246115,0.56220629,118380.0,118370.0,1.1331805]
[1752649246312,0.66865418,118380.0,118370.0,1.1331805]
[1752649247419,0.7446238,118380.0,118370.0,1.1331805]
[1752649247620,0.63817591,118380.0,118370.0,1.1331805]
[1752649248524,0.27052497,118380.0,118370.0,1.1331805]
[1752649248725,0.63817591,118380.0,118370.0,1.1331805]
[1752649249526,0.56220629,118380.0,118370.0,0.5321405]
[1752649249821,0.19455535,118380.0,118370.0,0.5321405]
[1752649250025,0.56220629,118380.0,118370.0,0.5321405]
[1752649251426,0.56220629,118380.0,118370.0,1.1331805]
[1752649252525,0.63717591,118380.0,118370.0,1.1331805]
[1752649253122,0.46823611,118380.0,118370.0,1.1358105]
[1752649253322,0.19118525,118380.0,118370.0,1.50346144]
[1752649253627,0.0002,118380.0,118370.0,1.50346144]
[1752649255126,0.0002,118380.0,118370.0,1.1358105]
[1752649255328,0.0002,118380.0,118370.0,1.50346144]
[1752649256036,0.0002,118380.0,118370.0,1.86426144]
[1752649256227,0.1691397,118380.0,118370.0,1.86426144]
[1752649256628,0.1740697,118380.0,118370.0,1.86526144]
[1752649257332,0.54413064,118380.0,118370.0,0.8965705]
[1752649257835,0.54413064,118380.0,118370.0,1.4976505]
[1752649258026,0.1764797,118380.0,118370.0,1.4976505]
[1752649258336,0.54413064,118380.0,118370.0,1.4976505]
[1752649259738,0.60490805,118380.0,118370.0,1.4966505]
[1752649260237,0.54413064,118380.0,118370.0,1.4940205]
[1752649261039,0.54413064,118380.0,118370.0,1.4966505]
[1752649263725,0.1764797,118380.0,118370.0,1.4966505]
[1752649265037,0.25244932,118380.0,118370.0,1.4966505]
[1752649265226,0.25003932,118380.0,118370.0,1.4966505]
[1752649265938,0.08109962,118380.0,118370.0,1.4966505]
[1752649266242,0.07616962,118380.0,118370.0,1.4966505]
[1752649266940,0.08071962,118380.0,118370.0,1.4966505]
[1752649267236,0.07616962,118380.0,118370.0,1.86430144]
[1752649267442,0.06100915,118380.0,118370.0,1.86430144]
[1752649268138,0.0002,118380.0,118370.0,1.86430144]
[1752649268643,0.54134064,118380.0,118370.0,1.4966505]
[1752649268844,0.1736897,118380.0,118370.0,1.4966505]
[1752649269037,0.00475,118380.0,118370.0,1.4976505]
[1752649269434,0.08071962,118380.0,118370.0,1.4976505]
[1752649270242,0.00475,118380.0,118370.0,1.4976505]
[1752649270737,0.07616962,118380.0,118370.0,1.4976505]
[1752649271142,0.07616962,118380.0,118370.0,1.86530144]
[1752649272344,0.07616962,118380.0,118370.0,1.87377881]
[1752649273346,0.06100303,118380.0,118370.0,1.87377881]
[1752649275144,0.06100303,118380.0,118370.0,1.87477881]
[1752649275345,0.0002,118380.0,118370.0,1.87477881]
[1752649275546,0.0002,118380.0,118370.0,3.37477881]
[1752649276345,0.06099509,118380.0,118370.0,3.37477881]
[1752649277744,0.06099509,118380.0,118370.0,3.37677881]
[1752649278944,0.06099509,118380.0,118370.0,3.00912787]
[1752649279245,0.06099509,118380.0,118370.0,3.37677881]
[1752649279745,0.0002,118380.0,118370.0,3.37677881]
[1752649284143,0.06534509,118390.0,118370.0,3.37677881]
[1752649284446,0.06534509,118390.0,118380.0,0.90228074]
[1752649284647,0.06534509,118390.0,118380.0,1.24622767]
[1752649285550,0.06534509,118390.0,118380.0,0.87857673]
[1752649285748,0.06534509,118390.0,118380.0,1.24622767]
[1752649286148,0.06775509,118390.0,118380.0,1.24622767]
[1752649286546,0.06775509,118390.0,118380.0,1.24722767]
[1752649287047,0.06775509,118390.0,118380.0,0.55476306]
[1752649287344,0.06775509,118390.0,118380.0,0.922414]
[1752649287741,0.06775509,118390.0,118380.0,0.55476306]
[1752649287941,0.06775509,118390.0,118380.0,0.5356298]
[1752649288144,0.06534509,118390.0,118380.0,0.92189266]
[1752649288347,0.07886061,118400.0,118390.0,0.1738655]
[1752649288551,0.09846471,118400.0,118390.0,0.5346655]
[1752649288745,0.08111061,118400.0,118390.0,0.5346655]
[1752649288944,0.08111061,118400.0,118390.0,0.90231644]
[1752649289150,0.08111061,118400.0,118390.0,0.5346655]
[1752649289352,0.44876155,118400.0,118390.0,0.5346655]
[1752649289650,0.08111061,118400.0,118390.0,0.5346655]
[1752649289842,0.44876155,118400.0,118390.0,0.5346655]
[1752649290238,0.44876155,118400.0,118390.0,0.5356655]
[1752649291349,0.08111061,118400.0,118390.0,0.5356655]
[1752649291544,0.44876155,118400.0,118390.0,0.5356655]
[1752649292145,0.61767285,118400.0,118390.0,0.5356655]
[1752649292351,0.55687776,118400.0,118390.0,0.5330355]
[1752649292750,0.63284738,118400.0,118390.0,0.5330355]
[1752649293252,0.9245287,118400.0,118390.0,0.5307255]
[1752649293549,0.98526028,118400.0,118390.0,0.5307255]
[1752649293949,0.9245287,118400.0,118390.0,0.5307255]
[1752649294451,0.55687776,118400.0,118390.0,0.5297255]
[1752649295352,0.55687776,118400.0,118390.0,0.1689255]
[1752649296250,0.55787776,118400.0,118390.0,0.1689255]
[1752649297055,0.55787776,118400.0,118390.0,0.5297255]
[1752649297554,0.55787776,118400.0,118390.0,0.1689255]
[1752649299856,0.66432565,118400.0,118390.0,0.1689255]
[1752649301652,0.55787776,118400.0,118390.0,0.1689255]
[1752649301956,0.55807776,118400.0,118390.0,0.1689255]
[1752649302353,0.19042682,118400.0,118390.0,0.1689255]
[1752649302558,0.55807776,118400.0,118390.0,0.1689255]
[1752649303155,0.63404555,118400.0,118390.0,0.1689255]
[1752649305055,0.55807776,118400.0,118390.0,0.1689255]
[1752649305258,0.63404555,118400.0,118390.0,0.1689255]
[1752649307451,0.26639461,118400.0,118390.0,0.1689255]
[1752649307656,0.63404555,118400.0,118390.0,0.1689255]
[1752649308461,0.74049344,118400.0,118390.0,0.1712355]
[1752649308655,0.66452565,118400.0,118390.0,0.1712355]
[1752649312960,0.29687471,118400.0,118390.0,0.1712355]
[1752649313264,0.66452565,118400.0,118390.0,0.1712355]
[1752649316159,0.74050094,118400.0,118390.0,0.1712355]
[1752649316464,0.63405305,118400.0,118390.0,0.1712355]
[1752649317669,0.63405305,118400.0,118390.0,0.5320355]
[1752649319870,0.66452565,118400.0,118390.0,0.5320355]
[1752649321266,0.66452565,118400.0,118390.0,0.6320355]
[1752649323475,0.29687471,118400.0,118390.0,0.6320355]
[1752649323775,0.66452565,118400.0,118390.0,0.6320355]
[1752649327379,0.55807776,118400.0,118390.0,0.6320355]
[1752649328982,0.74183078,118400.0,118390.0,0.6320355]
[1752649331982,0.19042682,118400.0,118390.0,0.6320355]
[1752649332181,1.36611078,118400.0,118390.0,0.6320355]
[1752649332382,0.74183078,118400.0,118390.0,0.6320355]
[1752649332582,0.81788184,118400.0,118390.0,0.6320355]
[1752649333788,0.26647788,118400.0,118390.0,0.6320355]
[1752649334082,0.74183078,118400.0,118390.0,1.2556755]
[1752649334789,0.19042682,118400.0,118390.0,1.2583055]
[1752649335089,0.74183078,118400.0,118390.0,1.2583055]
[1752649335289,0.74083078,118400.0,118390.0,1.2583055]
[1752649335786,0.4651288,118400.0,118390.0,1.2583055]
[1752649335987,0.4651288,118400.0,118390.0,1.53400748]
[1752649336178,0.4651288,118400.0,118390.0,2.7583055]
[1752649336384,0.74083078,118400.0,118390.0,3.03400748]
[1752649336587,0.18942682,118400.0,118390.0,3.03400748]
[1752649336788,0.4651288,118400.0,118390.0,3.03400748]
[1752649339792,0.74083078,118400.0,118390.0,3.03400748]
[1752649341385,0.74083078,118400.0,118390.0,2.67320748]
[1752649341689,0.74083078,118400.0,118390.0,3.03400748]
[1752649342284,0.74083058,118400.0,118390.0,3.03400748]
[1752649343984,0.74083058,118400.0,118390.0,2.7583055]
[1752649344282,0.74083058,118400.0,118390.0,3.03400748]
[1752649345279,0.74083058,118400.0,118390.0,2.7583055]
[1752649346788,0.18942662,118400.0,118390.0,2.7583055]
[1752649346986,0.74083058,118400.0,118390.0,2.7583055]
[1752649348496,0.18942662,118400.0,118390.0,2.7583055]
[1752649348793,0.81685471,118400.0,118390.0,2.7583055]
[1752649349292,0.26545075,118400.0,118390.0,3.03400748]
[1752649349493,0.53890273,118400.0,118390.0,3.03400748]
[1752649349697,0.81460471,118400.0,118390.0,3.03400748]
[1752649350693,0.81460471,118400.0,118390.0,2.7583055]
[1752649351087,0.81705471,118400.0,118390.0,2.7583055]
[1752649351895,0.26565075,118400.0,118390.0,2.7583055]
[1752649352105,0.81705471,118400.0,118390.0,2.7583055]
[1752649352690,0.81705471,118400.0,118390.0,2.3975055]
[1752649352995,0.81705471,118400.0,118390.0,2.7583055]
[1752649354995,0.74103058,118400.0,118390.0,2.7583055]
[1752649355494,0.84747847,118400.0,118390.0,2.7583055]
[1752649356495,0.84747847,118400.0,118390.0,3.03400748]
[1752649356796,0.92350804,118400.0,118390.0,3.03400748]
[1752649357096,0.81706015,118400.0,118390.0,3.03400748]
[1752649357895,0.81706015,118400.0,118390.0,2.7583055]
[1752649358290,0.37244707,118400.0,118390.0,3.03400748]
[1752649358485,0.81706015,118400.0,118390.0,3.03400748]
[1752649359397,0.54135817,118400.0,118390.0,3.03400748]
[1752649359698,0.54135817,118400.0,118390.0,3.03500748]
[1752649361699,0.81706015,118400.0,118390.0,3.03500748]
[1752649361893,0.26565619,118400.0,118390.0,3.03500748]
[1752649362293,0.81706015,118400.0,118390.0,3.03500748]
[1752649364403,0.81706015,118400.0,118390.0,2.7593055]
[1752649364899,0.81706015,118400.0,118390.0,1.7722355]
[1752649365096,0.81706015,118400.0,118390.0,2.7474355]
[1752649365698,0.81706015,118400.0,118390.0,2.1330355]
[1752649365899,0.81706015,118400.0,118390.0,2.7471955]
[1752649366495,0.81706015,118400.0,118390.0,2.7461955]
[1752649366900,0.81806015,118400.0,118390.0,2.7461955]
[1752649367396,0.26665619,118400.0,118390.0,2.7461955]
[1752649367602,0.81806015,118400.0,118390.0,2.7488255]
[1752649368600,0.74203058,118400.0,118390.0,2.7488255]
[1752649368802,0.84847847,118400.0,118390.0,2.7488255]
[1752649371504,0.31411454,118400.0,118390.0,2.7488255]
[1752649371705,0.8655185,118400.0,118390.0,2.7488255]
[1752649372405,0.75907061,118400.0,118390.0,2.7488255]
[1752649375207,1.03477259,118400.0,118390.0,1.60231]
[1752649375408,1.03477259,118400.0,118390.0,2.21475]
[1752649375603,1.64709259,118400.0,118390.0,0.1]
[1752649376708,1.72313201,118400.0,118390.0,0.1]
[1752649377301,1.64709259,118400.0,118390.0,0.1]
[1752649378207,1.72310764,118400.0,118390.0,0.1]
[1752649379014,1.64709259,118400.0,118390.0,0.1]
[1752649379520,1.75354048,118400.0,118390.0,0.1]
[1752649381022,2.11434048,118400.0,118390.0,0.1]
[1752649382218,2.11434048,118400.0,118390.0,0.2689254]
[1752649382632,2.11434048,118400.0,118390.0,0.1]
[1752649383215,1.8386385,118400.0,118390.0,0.1]
[1752649383419,1.8386385,118400.0,118390.0,0.2689254]
[1752649383720,2.11434048,118400.0,118390.0,0.1]
[1752649384315,2.00789259,118400.0,118390.0,0.1]
[1752649385516,2.11434048,118400.0,118390.0,0.1]
[1752649387516,2.00789259,118400.0,118390.0,0.1]
[1752649388718,2.11434048,118400.0,118390.0,0.1]
[1752649390325,2.00789259,118400.0,118390.0,0.1]
[1752649392629,1.64709259,118400.0,118390.0,0.1]
[1752649393027,1.72308652,118400.0,118390.0,0.1]
[1752649393617,1.64709259,118400.0,118390.0,0.1]
[1752649395126,1.64709259,118400.0,118390.0,0.2689254]
[1752649395127,1.4726785,118400.0,118390.0,0.2689254]
[1752649395428,0.8655185,118400.0,118390.0,0.2689254]
[1752649395622,1.4723985,118400.0,118390.0,0.2689254]
[1752649398128,1.19669652,118400.0,118390.0,0.2689254]
[1752649398331,1.4723985,118400.0,118390.0,0.2689254]
[1752649399931,1.36595061,118400.0,118390.0,0.2689254]
[1752649401134,1.4419753,118400.0,118390.0,0.2689254]
[1752649402332,1.71767728,118400.0,118390.0,0.2689254]
[1752649403038,1.4419753,118400.0,118390.0,0.2689254]
[1752649403537,1.71767728,118400.0,118390.0,0.2689254]
[1752649404435,0.89057134,118400.0,118390.0,0.2689254]
[1752649404635,1.4419753,118400.0,118390.0,0.2689254]
[1752649404936,1.47238518,118400.0,118390.0,0.2689254]
[1752649406236,1.36595061,118400.0,118390.0,0.2689254]
[1752649406740,1.47238518,118400.0,118390.0,0.2689254]
[1752649407638,1.74808716,118400.0,118390.0,0.2689254]
[1752649407842,1.74808716,118400.0,118390.0,0.1]
[1752649408139,1.74808716,118400.0,118390.0,0.2689254]
[1752649408338,1.64165259,118400.0,118390.0,0.2689254]
[1752649408828,1.64165259,118400.0,118390.0,0.1]
[1752649409138,1.64165259,118400.0,118390.0,0.2689254]
[1752649409338,1.64165259,118400.0,118390.0,0.1]
[1752649411341,1.64165259,118400.0,118390.0,0.2689254]
[1752649411640,1.36595061,118400.0,118390.0,0.2689254]
[1752649412543,1.03477259,118400.0,118390.0,0.2689254]
[1752649412743,1.63881259,118400.0,118390.0,0.2689254]
[1752649413645,1.36311061,118400.0,118390.0,0.2689254]
[1752649414344,1.63881259,118400.0,118390.0,0.1]
[1752649414541,1.99961259,118400.0,118390.0,0.1]
[1752649415043,1.99961259,118400.0,118390.0,0.01934767]
[1752649415545,2.10608743,118400.0,118390.0,0.01934767]
[1752649415745,2.1821418,118400.0,118390.0,0.01934767]
[1752649416039,2.07566696,118400.0,118390.0,0.01934767]
[1752649417145,2.10608743,118400.0,118390.0,0.01934767]
[1752649419646,1.27898149,118400.0,118390.0,0.01934767]
[1752649420045,2.10608743,118400.0,118390.0,0.01934767]
[1752649421847,1.74528743,118400.0,118390.0,0.01934767]
[1752649422150,2.10608743,118400.0,118390.0,0.01934767]
[1752649422451,1.99961259,118400.0,118390.0,0.01934767]
[1752649424152,2.106024,118400.0,118390.0,0.01934767]
[1752649424551,1.99961259,118400.0,118390.0,0.01934767]
[1752649424849,2.07561735,118400.0,118390.0,0.01934767]
[1752649428055,1.99961259,118400.0,118390.0,0.00411324]
[1752649428452,0.1760052,118390.0,118380.0,1.5]
[1752649428647,0.72760916,118390.0,118380.0,1.5]
[1752649428953,0.80360679,118390.0,118380.0,1.5]
[1752649429350,0.25220283,118390.0,118380.0,1.6689395]
[1752649429658,0.80360679,118390.0,118380.0,1.6689395]
[1752649432256,1.13134481,118390.0,118380.0,2.0345695]
[1752649432449,1.13134481,118390.0,118380.0,2.31027148]
[1752649432951,1.05534718,118390.0,118380.0,2.31027148]
[1752649433351,0.28260198,118390.0,118380.0,2.32912038]
[1752649433554,0.10659668,118390.0,118380.0,2.0534184]
[1752649433745,0.44308122,118390.0,118380.0,2.32912038]
[1752649434054,0.06098256,118390.0,118380.0,2.32912038]
[1752649434254,0.22990786,118390.0,118380.0,2.32912038]
[1752649434454,0.50560984,118390.0,118380.0,2.32912038]
[1752649435052,0.44482728,118390.0,118380.0,2.32912038]
[1752649435955,0.44482728,118390.0,118380.0,2.0534184]
[1752649436256,0.1691253,118390.0,118380.0,2.32912038]
[1752649436457,0.44482728,118390.0,118380.0,2.32912038]
[1752649437559,0.24510404,118390.0,118380.0,2.32912038]
[1752649437752,0.27552198,118390.0,118380.0,2.32912038]
[1752649438258,0.55122396,118390.0,118380.0,2.32912038]
[1752649438451,0.44482728,118390.0,118380.0,2.32912038]
[1752649438657,0.52081522,118390.0,118380.0,2.32912038]
[1752649438956,0.61269201,118390.0,118380.0,2.0534184]
[1752649439757,0.44376671,118390.0,118380.0,2.0534184]
[1752649440753,0.61269191,118390.0,118380.0,2.0534184]
[1752649442258,0.61768191,118390.0,118380.0,2.0534184]
[1752649443452,0.67847554,118390.0,118380.0,2.0534184]
[1752649443658,0.6024876,118390.0,118380.0,2.0534184]
[1752649444658,0.62211735,118390.0,118380.0,2.0534184]
[1752649444859,0.62211735,118390.0,118380.0,2.6567784]
[1752649445259,0.62211735,118390.0,118380.0,2.0534184]
[1752649445460,0.62211735,118390.0,118380.0,2.6567784]
[1752649453167,0.23720883,118390.0,118380.0,2.6567784]
[1752649453368,0.1764152,118390.0,118380.0,2.6567784]
[1752649453570,0.54399397,118390.0,118380.0,2.6567784]
[1752649453873,0.53670397,118390.0,118380.0,2.6567784]
[1752649458275,0.61269191,118390.0,118380.0,2.6567784]
[1752649458465,0.61768191,118390.0,118380.0,2.6567784]
[1752649458968,0.63464635,118390.0,118380.0,2.6567784]
[1752649459172,0.55865841,118390.0,118380.0,2.6567784]
[1752649460377,0.61946034,118390.0,118380.0,2.6567784]
[1752649462074,0.62176034,118390.0,118380.0,2.6567784]
[1752649462970,0.52989173,118390.0,118380.0,2.6567784]
[1752649464170,0.4690898,118390.0,118380.0,2.6567784]
[1752649464371,0.52991474,118390.0,118380.0,2.6567784]
[1752649467076,0.52991474,118390.0,118380.0,2.93248856]
[1752649467982,0.52991474,118390.0,118380.0,2.6567784]
[1752649468191,0.4690898,118390.0,118380.0,2.93248856]
[1752649468596,0.4690898,118390.0,118380.0,2.6567784]
[1752649474596,0.19337964,118390.0,118380.0,2.93248856]
[1752649474796,0.4690898,118390.0,118380.0,2.93248856]
[1752649475298,0.1764152,118390.0,118380.0,2.93248856]
[1752649475598,0.45212536,118390.0,118380.0,2.93248856]
[1752649475800,0.5129503,118390.0,118380.0,2.93248856]
[1752649476191,0.45212536,118390.0,118380.0,2.93248856]
[1752649476497,0.5281133,118390.0,118380.0,2.93248856]
[1752649476697,0.5231233,118390.0,118380.0,2.93248856]
[1752649477696,0.5231233,118390.0,118380.0,2.57168856]
[1752649477899,0.5231233,118390.0,118380.0,2.93248856]
[1752649479701,0.44713536,118390.0,118380.0,2.6567784]
[1752649479900,0.44713536,118390.0,118380.0,2.93248856]
[1752649482000,0.44713536,118390.0,118380.0,2.57168856]
[1752649482201,0.44713536,118390.0,118380.0,2.93248856]
[1752649483502,0.44713536,118390.0,118380.0,2.6567784]
[1752649483691,0.44713536,118390.0,118380.0,2.93248856]
[1752649483895,0.46426959,118390.0,118380.0,2.91363966]
[1752649484096,0.46884959,118390.0,118380.0,2.91363966]
[1752649484397,0.46884959,118390.0,118380.0,2.6379295]
[1752649485402,0.46884959,118390.0,118380.0,2.91363966]
[1752649486200,0.46196959,118390.0,118380.0,2.91363966]
[1752649488004,0.44483536,118390.0,118380.0,2.91363966]
[1752649488599,0.44483536,118390.0,118380.0,1.41363966]
[1752649489007,0.44483536,118390.0,118380.0,2.91363966]
[1752649489906,0.1691252,118390.0,118380.0,2.91363966]
[1752649490106,0.44483536,118390.0,118380.0,2.91363966]
[1752649491109,0.44483536,118390.0,118380.0,2.6379295]
[1752649491309,0.44483536,118390.0,118380.0,2.91363966]
[1752649492103,0.44487536,118390.0,118380.0,2.91363966]
[1752649493808,0.1691652,118390.0,118380.0,2.91363966]
[1752649494204,0.44487536,118390.0,118380.0,2.91363966]
[1752649495206,0.5254433,118390.0,118380.0,2.91363966]
[1752649495703,0.82076236,118390.0,118380.0,2.0345695]
[1752649495910,0.8816211,118390.0,118380.0,1.86563]
[1752649496104,0.80563316,118390.0,118380.0,1.6689395]
[1752649496310,0.1712595,118380.0,118370.0,1.2663442]
[1752649496516,0.78831666,118380.0,118370.0,1.2663442]
[1752649496816,0.72745982,118380.0,118370.0,2.7663442]
[1752649497017,0.54373697,118380.0,118370.0,2.1636242]
[1752649497312,0.54373697,118380.0,118370.0,2.7663442]
[1752649497613,0.54373697,118380.0,118370.0,2.7683442]
[1752649499006,0.54373697,118380.0,118370.0,2.1656242]
[1752649499210,0.54373697,118380.0,118370.0,2.7683442]
[1752649500406,0.54373697,118380.0,118370.0,2.7261063]
[1752649501113,0.54373697,118380.0,118370.0,2.1233863]
[1752649501314,0.54373697,118380.0,118370.0,2.7261063]
[1752649501815,0.54373697,118380.0,118370.0,2.1233863]
[1752649502114,0.54373697,118380.0,118370.0,2.7260663]
[1752649502408,0.54373697,118380.0,118370.0,2.6838287]
[1752649503611,0.54373697,118380.0,118370.0,1.86997]
[1752649503809,0.61972491,118380.0,118370.0,2.6416038]
[1752649504010,0.61972491,118380.0,118370.0,2.47265]
[1752649504313,0.54373697,118380.0,118370.0,2.47265]
[1752649505014,0.60451939,118380.0,118370.0,2.47265]
[1752649505316,0.60451939,118380.0,118370.0,1.86512]
[1752649505522,1.14637697,118380.0,118370.0,1.502]
[1752649505816,1.22236491,118380.0,118370.0,1.502]
[1752649508015,1.14637697,118380.0,118370.0,1.502]
[1752649508218,1.22231557,118380.0,118370.0,1.502]
[1752649509513,1.14637697,118380.0,118370.0,1.502]
[1752649512019,1.22231557,118380.0,118370.0,1.502]
[1752649513717,1.22231557,118380.0,118370.0,0.002]
[1752649514423,1.14637697,118380.0,118370.0,0.002]
[1752649520929,0.7786795,118380.0,118370.0,0.002]
[1752649521228,1.14637697,118380.0,118370.0,0.002]
[1752649522228,1.22231557,118380.0,118370.0,0.002]
[1752649525330,1.58311557,118380.0,118370.0,0.002]
[1752649525732,1.50717697,118380.0,118370.0,0.002]
[1752649526627,0.1689537,118370.0,118360.0,1.5]
[1752649526826,1.03508366,118370.0,118360.0,1.5]
[1752649527923,1.03508366,118370.0,118360.0,1.501]
[1752649528231,1.03508366,118370.0,118360.0,1.504]
[1752649528824,1.03508366,118370.0,118360.0,1.501]
[1752649530131,1.03508366,118370.0,118360.0,1.5]
[1752649530331,1.03608366,118370.0,118360.0,1.5]
[1752649530630,1.52528366,118370.0,118360.0,1.5]
[1752649530840,0.168968,118360.0,118350.0,0.37946196]
[1752649531033,0.1758722,118350.0,118340.0,0.31399018]
[1752649531221,0.62191613,118350.0,118340.0,0.31633018]
[1752649531430,0.56115333,118350.0,118340.0,0.31633018]
[1752649531926,0.19345586,118350.0,118340.0,1.81633018]
[1752649532126,0.1691822,118350.0,118340.0,2.35766415]
[1752649532327,0.0609618,118350.0,118340.0,2.35766415]